fUSD/lending_fUSD_20260628
["ID","MTS","AMOUNT","RATE_DAILY","PERIOD"]
[426583331,1782631832000,-199.5,0.00018174,2]
[426583325,1782631832000,-173.89,0.00017102,2]
[426583282,1782631832000,-167.4,0.00014073,2]
[426583322,1782631832000,-617.69221986,0.00016685,2]
[426583324,1782631832000,-172.02,0.00016712,2]
[426583299,1782631832000,-350.86,0.00014489,2]
[426583300,1782631832000,-667.6184232,0.00014491,2]
[426583302,1782631832000,-160.0,0.0001463,2]
[426583307,1782631832000,-500.0,0.00014999,2]
[426583303,1782631832000,-500.0,0.00014763,2]
[426583313,1782631832000,-378.0,0.00015481,2]
[426583305,1782631832000,-500.0,0.00014999,2]
[426583304,1782631832000,-350.86,0.00014834,2]
[426583311,1782631832000,-350.86,0.00015179,2]
[426583308,1782631832000,-250.0,0.00015015,2]
[426583310,1782631832000,-160.0,0.00015125,2]
[426583292,1782631832000,-3221.74,0.00014298,2]
[426583306,1782631832000,-501.78954076,0.00014999,2]
[426583309,1782631832000,-500.0,0.00015037,2]
[426583320,1782631832000,-216.0,0.00016438,2]
[426583319,1782631832000,-424.24749189,0.000162,2]
[426583317,1782631832000,-424.24749189,0.00016,2]
[426583314,1782631832000,-600.12,0.00015489,2]
[426583321,1782631832000,-1310.54409796,0.00016528,2]
[426583318,1782631832000,-424.24749189,0.000161,2]
[426583316,1782631832000,-300.0,0.00016,2]
[426583301,1782631832000,-250.0,0.00014491,2]
[426583312,1782631832000,-206.75701386,0.00015311,2]
[426583315,1782631832000,-403.22,0.00015811,2]
[426583385,1782631837000,-153.0,0.0002,2]
[426583378,1782631837000,-154.84550423,0.0002,2]
[426583387,1782631837000,-3704.5,0.0002,2]
[426583384,1782631837000,-153.0,0.0002,2]
[426583381,1782631837000,-155.0,0.0002,2]
[426583382,1782631837000,-153.0,0.0002,2]
[426583383,1782631837000,-298.0,0.0002,2]
[426583386,1782631837000,-664.0,0.0002,2]
[426583377,1782631837000,-151.0,0.0002,2]
[426583373,1782631837000,-256.0,0.00019452,2]
[426583375,1782631837000,-1310.54409796,0.00019979,2]
[426583374,1782631837000,-684.13714633,0.00019637,2]
[426583370,1782631837000,-360.90989524,0.00019412,2]
[426583372,1782631837000,-726125.96791575,0.00019412,2]
[426583371,1782631837000,-718.29858037,0.00019412,2]
[426583368,1782631837000,-785.640368,0.00019412,2]
[426583367,1782631837000,-286.37488457,0.00019402,2]
[426583352,1782631837000,900.44,0.00028905,120]
[426583379,1782631837000,-490.0,0.0002,2]
[426583376,1782631837000,-400.0,0.0002,2]
[426583380,1782631837000,-524.0,0.0002,2]
[426583369,1782631837000,-2074.275,0.00019412,2]
[426583390,1782631837000,-499.99,0.00020145,2]
[426583418,1782631837000,-302.44671004,0.00020296,7]
[426583415,1782631837000,-11530.02,0.00020145,2]
[426583409,1782631837000,-999.99,0.00020145,2]
[426583406,1782631837000,-9999.99,0.00020145,2]
[426583417,1782631837000,-2139.69,0.00020145,2]
[426583411,1782631837000,-14236.17,0.00020145,2]
[426583402,1782631837000,-9999.99,0.00020145,2]
[426583400,1782631837000,-9999.99,0.00020145,2]
[426583388,1782631837000,-4154.0,0.0002,2]
[426583413,1782631837000,-299.99,0.00020145,7]
[426583419,1782631837000,-180.02,0.00020475,2]
[426583396,1782631837000,-4999.99,0.00020145,2]
[426583398,1782631837000,-12046.3,0.00020145,2]
[426583397,1782631837000,-3759.43,0.00020145,2]
[426583392,1782631837000,-150.99,0.00020145,2]
[426583394,1782631837000,-34091.18,0.00020145,2]
[426583395,1782631837000,-9999.99,0.00020145,2]
[426583389,1782631837000,-1566.84,0.00020017,2]
[426583391,1782631837000,-2546.43,0.00020145,2]
[426583393,1782631837000,-9999.99,0.00020145,2]
[426583404,1782631837000,-1564.62,0.00020145,2]
[426583463,1782631838000,-603.402,0.00021426,7]
[426583462,1782631838000,-500.0,0.00021426,7]
[426583468,1782631838000,-500.0,0.000217,7]
[426583450,1782631838000,-151.0,0.00021325,2]
[426583454,1782631838000,-151.0,0.00021325,2]
[426583456,1782631838000,-151.0,0.00021325,2]
[426583447,1782631838000,-151.0,0.00021325,2]
[426583449,1782631838000,-151.0,0.00021325,2]
[426583446,1782631838000,-151.0,0.00021325,2]
[426583466,1782631838000,-500.0,0.000217,7]
[426583455,1782631838000,-151.0,0.00021325,2]
[426583460,1782631838000,-500.0,0.00021426,7]
[426583474,1782631838000,-490.0,0.00022,2]
[426583469,1782631838000,-500.0,0.000217,7]
[426583459,1782631838000,-6116.85632789,0.00021405,2]
[426583464,1782631838000,-957.41,0.00021576,2]
[426583465,1782631838000,-500.0,0.000217,7]
[426583461,1782631838000,-500.0,0.00021426,7]
[426583470,1782631838000,-5000.0,0.00021918,2]
[426583478,1782631838000,-153.0,0.00022,2]
[426583476,1782631838000,-155.0,0.00022,2]
[426583473,1782631838000,-151.0,0.00022,2]
[426583453,1782631838000,-151.0,0.00021325,2]
[426583475,1782631838000,-524.0,0.00022,2]
[426583472,1782631838000,-450.0,0.00022,2]
[426583479,1782631838000,-153.0,0.00022,2]
[426583467,1782631838000,-500.0,0.000217,7]
[426583452,1782631838000,-151.0,0.00021325,2]
[426583440,1782631838000,-151.0,0.00021325,2]
[426583458,1782631838000,-151.0,0.00021325,2]
[426583471,1782631838000,-3188.30775716,0.00021999,2]
[426583432,1782631838000,-490.0,0.00021,2]
[426583424,1782631838000,-4468.8614,0.00020548,2]
[426583420,1782631838000,-173.89,0.00020523,2]
[426583422,1782631838000,-4468.8614,0.00020548,2]
[426583425,1782631838000,-4468.8614,0.00020548,2]
[426583430,1782631838000,-150.0,0.0002058,2]
[426583421,1782631838000,-173.51198,0.00020532,2]
[426583429,1782631838000,-150.0,0.0002058,2]
[426583431,1782631838000,-151.0,0.00021,2]
[426583423,1782631838000,-4468.8614,0.00020548,2]
[426583428,1782631838000,-4468.8614,0.00020548,2]
[426583426,1782631838000,-4468.8614,0.00020548,2]
[426583436,1782631838000,-153.0,0.00021,2]
[426583444,1782631838000,-151.0,0.00021325,2]
[426583434,1782631838000,-155.0,0.00021,2]
[426583445,1782631838000,-151.0,0.00021325,2]
[426583442,1782631838000,-151.0,0.00021325,2]
[426583435,1782631838000,-298.0,0.00021,2]
[426583441,1782631838000,-151.0,0.00021325,2]
[426583438,1782631838000,-664.0,0.00021,2]
[426583437,1782631838000,-153.0,0.00021,2]
[426583433,1782631838000,-524.0,0.00021,2]
[426583439,1782631838000,-151.0,0.00021325,2]
[426583443,1782631838000,-151.0,0.00021325,2]
[426583448,1782631838000,-151.0,0.00021325,2]
[426583451,1782631838000,-151.0,0.00021325,2]
[426583457,1782631838000,-151.0,0.00021325,2]
[426583477,1782631838000,-298.0,0.00022,2]
[426583427,1782631838000,-4468.8614,0.00020548,2]
[426583485,1782631838000,-290.93,0.00022466,2]
[426583510,1782631838000,-151.0,0.00024,2]
[426583517,1782631838000,-664.0,0.00024,2]
[426583512,1782631838000,-524.0,0.00024,2]
[426583514,1782631838000,-298.0,0.00024,2]
[426583511,1782631838000,-490.0,0.00024,2]
[426583519,1782631838000,-254.57,0.0002411,2]
[426583529,1782631838000,-500.0,0.00024657,2]
[426583518,1782631838000,-166.66,0.00024018,30]
[426583521,1782631838000,-19239.03,0.00024174,2]
[426583520,1782631838000,-1009.35,0.00024174,2]
[426583522,1782631838000,-517.88,0.00024174,2]
[426583523,1782631838000,-434.22,0.00024174,2]
[426583509,1782631838000,-163.45840102,0.00023788,2]
[426583524,1782631838000,-166.66,0.00024513,30]
[426583537,1782631838000,-357.97243412,0.000247,2]
[426583527,1782631838000,-500.0,0.00024657,2]
[426583525,1782631838000,-156.75854824,0.00024599,2]
[426583526,1782631838000,-500.0,0.00024657,2]
[426583532,1782631838000,-500.0,0.00024657,2]
[426583536,1782631838000,-285.1542854,0.000247,2]
[426583539,1782631838000,-189.86987818,0.000247,2]
[426583531,1782631838000,-500.0,0.00024657,2]
[426583533,1782631838000,-1000.0,0.00024658,2]
[426583535,1782631838000,-291.26154694,0.000247,2]
[426583538,1782631838000,-3263.04104574,0.000247,2]
[426583534,1782631838000,-182.41,0.00024658,2]
[426583528,1782631838000,-500.0,0.00024657,2]
[426583516,1782631838000,-153.0,0.00024,2]
[426583530,1782631838000,-500.0,0.00024657,2]
[426583505,1782631838000,-163.00293219,0.00023715,2]
[426583513,1782631838000,-155.0,0.00024,2]
[426583482,1782631838000,-313.79467906,0.00022333,2]
[426583490,1782631838000,-524.0,0.00023,2]
[426583484,1782631838000,-270.27,0.00022466,2]
[426583483,1782631838000,-2038.69,0.00022466,2]
[426583488,1782631838000,-151.0,0.00023,2]
[426583481,1782631838000,-1121.66,0.00022,2]
[426583489,1782631838000,-490.0,0.00023,2]
[426583487,1782631838000,-900.0,0.000229,8]
[426583480,1782631838000,-664.0,0.00022,2]
[426583491,1782631838000,-155.0,0.00023,2]
[426583499,1782631838000,-1310.54409796,0.00023431,2]
[426583497,1782631838000,-249.0,0.00023174,2]
[426583502,1782631838000,-189.04189858,0.00023715,2]
[426583486,1782631838000,-156.75854824,0.00022599,2]
[426583503,1782631838000,-154.21423282,0.00023715,2]
[426583494,1782631838000,-153.0,0.00023,2]
[426583508,1782631838000,-6116.85632789,0.00023757,2]
[426583515,1782631838000,-153.0,0.00024,2]
[426583500,1782631838000,-166.66,0.00023523,30]
[426583496,1782631838000,-900.44,0.00023124,2]
[426583507,1782631838000,-152.62644671,0.00023749,2]
[426583498,1782631838000,-2019.11,0.00023368,2]
[426583495,1782631838000,-664.0,0.00023,2]
[426583501,1782631838000,-200.4815916,0.00023713,2]
[426583493,1782631838000,-153.0,0.00023,2]
[426583506,1782631838000,-154.4012295,0.00023749,2]
[426583492,1782631838000,-298.0,0.00023,2]
[426583504,1782631838000,-150.46727124,0.00023715,2]
[426583581,1782631839000,-1408.05176496,0.00025796,14]
[426583574,1782631839000,-3263.04104574,0.000255,2]
[426583566,1782631839000,-285.1542854,0.000252,2]
[426583568,1782631839000,-3263.04104574,0.000252,2]
[426583577,1782631839000,-285.1542854,0.000257,2]
[426583575,1782631839000,-166.66,0.00025504,30]
[426583571,1782631839000,-307.0,0.000255,15]
[426583572,1782631839000,-285.1542854,0.000255,2]
[426583576,1782631839000,-291.02,0.00025675,7]
[426583569,1782631839000,-313.79467906,0.00025314,2]
[426583573,1782631839000,-357.97243412,0.000255,2]
[426583582,1782631839000,-164.36783173,0.00025813,2]
[426583588,1782631839000,-567.12569575,0.00025815,2]
[426583578,1782631839000,-357.97243412,0.000257,2]
[426583580,1782631839000,-798.16165297,0.00025796,14]
[426583567,1782631839000,-357.97243412,0.000252,2]
[426583579,1782631839000,-3263.04104574,0.000257,2]
[426583585,1782631839000,-601.44477479,0.00025813,2]
[426583584,1782631839000,-427.15841078,0.00025813,2]
[426583586,1782631839000,-481.98425644,0.00025815,2]
[426583589,1782631839000,-444.57506737,0.00025815,2]
[426583590,1782631839000,-250.8086304,0.00025815,2]
[426583592,1782631839000,-462.64269846,0.00025815,2]
[426583587,1782631839000,-185.60627409,0.00025815,2]
[426583570,1782631839000,-181.11671621,0.0002548,2]
[426583556,1782631839000,-285.1542854,0.00025,2]
[426583555,1782631839000,-171.0,0.00025,2]
[426583591,1782631839000,-443.0670656,0.00025815,2]
[426583540,1782631839000,-262.39999999,0.000247,2]
[426583541,1782631839000,-500.0,0.00024767,2]
[426583546,1782631839000,-664.6005984,0.00024975,2]
[426583544,1782631839000,-240.99212822,0.00024975,2]
[426583543,1782631839000,-400.96318319,0.00024973,2]
[426583553,1782631839000,-508.0,0.00025,2]
[426583545,1782631839000,-378.08379716,0.00024975,2]
[426583542,1782631839000,-213.57920539,0.00024973,2]
[426583550,1782631839000,-300.93454249,0.00024975,2]
[426583549,1782631839000,-159.11872494,0.00024975,2]
[426583547,1782631839000,-308.42846564,0.00024975,2]
[426583551,1782631839000,-326.00586439,0.00024975,2]
[426583548,1782631839000,-158.97482453,0.00024975,2]
[426583559,1782631839000,-3263.04104574,0.00025,2]
[426583562,1782631839000,-668.23838046,0.00025,2]
[426583560,1782631839000,-169.84486236,0.00025,2]
[426583563,1782631839000,-166.66,0.00025009,30]
[426583557,1782631839000,-357.97243412,0.00025,2]
[426583558,1782631839000,-302.0,0.00025,2]
[426583561,1782631839000,-167.76103464,0.00025,2]
[426583554,1782631839000,-531.43751999,0.00025,2]
[426583564,1782631839000,-308.80245899,0.0002501,2]
[426583565,1782631839000,-305.25289342,0.0002501,2]
[426583552,1782631839000,-162.0,0.00025,2]
[426583593,1782631839000,-317.94964907,0.00025815,2]
[426583596,1782631839000,-451.40181373,0.00025815,2]
[426583624,1782631839000,-442.44842309,0.00026375,2]
[426583622,1782631839000,-251.52683554,0.00026373,2]
[426583625,1782631839000,-215.58755629,0.00026375,2]
[426583628,1782631839000,-168.92575555,0.00026375,2]
[426583637,1782631839000,-476.9244736,0.00026375,2]
[426583636,1782631839000,-309.94899053,0.00026375,2]
[426583629,1782631839000,-722.97638466,0.00026375,2]
[426583630,1782631839000,-271.91046972,0.00026375,2]
[426583627,1782631839000,-401.17279947,0.00026375,2]
[426583631,1782631839000,-314.15721118,0.00026375,2]
[426583634,1782631839000,-501.61726079,0.00026375,2]
[426583632,1782631839000,-371.21254817,0.00026375,2]
[426583635,1782631839000,-616.85693128,0.00026375,2]
[426583646,1782631839000,-370.72448393,0.00026379,2]
[426583642,1782631839000,-460.17916449,0.00026375,2]
[426583645,1782631839000,-222.28753369,0.00026379,2]
[426583640,1782631839000,-601.86908498,0.00026375,2]
[426583641,1782631839000,-399.47393589,0.00026375,2]
[426583639,1782631839000,-370.86470754,0.00026375,2]
[426583644,1782631839000,-546.92832056,0.00026375,2]
[426583638,1782631839000,-477.35617483,0.00026375,2]
[426583643,1782631839000,-652.01172877,0.00026375,2]
[426583594,1782631839000,-318.23744989,0.00025815,2]
[426583620,1782631839000,-640.73761616,0.00026373,2]
[426583626,1782631839000,-313.93797221,0.00026375,2]
[426583633,1782631839000,-756.16759433,0.00026375,2]
[426583618,1782631839000,-328.73566347,0.00026373,2]
[426583595,1782631839000,-185.43235377,0.00025815,2]
[426583621,1782631839000,-801.92636639,0.00026373,2]
[426583597,1782631839000,-230.08958224,0.00025815,2]
[426583600,1782631839000,-273.46416028,0.00025815,2]
[426583603,1782631839000,-170.9560339,0.00025851,2]
[426583599,1782631839000,-489.00879658,0.00025815,2]
[426583602,1782631839000,-221.22421154,0.00025849,2]
[426583598,1782631839000,-207.68706054,0.00025815,2]
[426583605,1782631839000,-463.20368849,0.00025851,2]
[426583607,1782631839000,-166.66,0.00025999,30]
[426583604,1782631839000,-154.97449526,0.00025851,2]
[426583606,1782631839000,-457.87934013,0.00025851,2]
[426583601,1782631839000,-185.36224197,0.00025819,2]
[426583610,1782631839000,-181.83,0.00026027,7]
[426583623,1782631839000,-350.42593433,0.00026373,2]
[426583619,1782631839000,-325.23663372,0.00026373,2]
[426583616,1782631839000,-233.96841838,0.00026373,2]
[426583617,1782631839000,-262.18483237,0.00026373,2]
[426583614,1782631839000,-280.18716958,0.00026373,2]
[426583615,1782631839000,-288.7934141,0.00026373,2]
[426583612,1782631839000,-3263.04104574,0.000262,2]
[426583611,1782631839000,-6116.85632789,0.00026108,2]
[426583608,1782631839000,-3263.04104574,0.00026,2]
[426583609,1782631839000,-900.44,0.00026015,2]
[426583613,1782631839000,-264.19697789,0.00026373,2]
[426583689,1782631840000,-2106.36123034,0.00028296,14]
[426583705,1782631840000,-298.0,0.00028667,30]
[426583684,1782631840000,-915.75868026,0.00027813,2]
[426583688,1782631840000,-313.79467906,0.00028295,2]
[426583687,1782631840000,-298.5,0.00028174,30]
[426583690,1782631840000,-2849.9724,0.00028296,14]
[426583680,1782631840000,-500.0,0.000275,7]
[426583683,1782631840000,-926.40737698,0.00027813,2]
[426583677,1782631840000,-471.90139977,0.00027397,2]
[426583676,1782631840000,-157.30046659,0.00027397,2]
[426583679,1782631840000,-160.92014735,0.000274,2]
[426583686,1782631840000,-786.50233295,0.00027957,2]
[426583694,1782631840000,-517.88,0.00028364,7]
[426583648,1782631840000,-174.81990942,0.0002641,2]
[426583691,1782631840000,-374.0,0.00028298,2]
[426583693,1782631840000,-19239.03,0.00028364,7]
[426583697,1782631840000,-6116.85632789,0.0002846,2]
[426583699,1782631840000,-151.0,0.00028666,30]
[426583696,1782631840000,-160.0,0.000284,7]
[426583706,1782631840000,-153.0,0.00028667,30]
[426583695,1782631840000,-434.22,0.00028364,7]
[426583707,1782631840000,-153.0,0.00028667,30]
[426583700,1782631840000,-154.0,0.00028667,30]
[426583701,1782631840000,-490.0,0.00028667,30]
[426583703,1782631840000,-155.0,0.00028667,30]
[426583678,1782631840000,-629.20186636,0.00027397,2]
[426583692,1782631840000,-178.0,0.00028302,10]
[426583675,1782631840000,-314.60093318,0.00027397,2]
[426583655,1782631840000,-617.60491798,0.00026412,2]
[426583673,1782631840000,-374.54,0.00027397,10]
[426583647,1782631840000,-285.57034655,0.0002641,2]
[426583650,1782631840000,-500.0,0.00026411,2]
[426583656,1782631840000,-610.50578684,0.00026412,2]
[426583660,1782631840000,-11925.4578759,0.00026579,2]
[426583654,1782631840000,-220.46124982,0.00026412,2]
[426583651,1782631840000,-213.9414715,0.00026412,2]
[426583652,1782631840000,-285.60399143,0.00026412,2]
[426583653,1782631840000,-341.91206779,0.00026412,2]
[426583649,1782631840000,-248.1570555,0.0002641,2]
[426583657,1782631840000,-500.0,0.00026482,2]
[426583658,1782631840000,-87381.6248053,0.00026483,2]
[426583659,1782631840000,-3263.04104574,0.000265,2]
[426583674,1782631840000,-227.54100422,0.00027397,2]
[426583669,1782631840000,-3263.04104574,0.00027,2]
[426583662,1782631840000,-157.36326576,0.00026616,2]
[426583670,1782631840000,-440.240762,0.0002709,2]
[426583671,1782631840000,-539.34,0.00027397,10]
[426583663,1782631840000,-3263.04104574,0.000268,2]
[426583665,1782631840000,-945.20949291,0.00026935,2]
[426583664,1782631840000,-1310.54409796,0.00026883,2]
[426583661,1782631840000,-156.75854824,0.00026599,2]
[426583667,1782631840000,-772.00614748,0.00026972,2]
[426583666,1782631840000,-771.0711641,0.00026935,2]
[426583672,1782631840000,-449.45,0.00027397,10]
[426583682,1782631840000,-925.28539692,0.00027775,2]
[426583681,1782631840000,-1134.25139149,0.00027775,2]
[426583668,1782631840000,-763.13223355,0.00026972,2]
[426583698,1782631840000,-474.29,0.00028592,2]
[426583685,1782631840000,-174.99,0.00027896,2]
[426583708,1782631840000,-664.0,0.00028669,30]
[426583743,1782631840000,-150.0,0.00029845,2]
[426583735,1782631840000,-153.0,0.00029667,30]
[426583741,1782631840000,-150.0,0.00029845,2]
[426583745,1782631840000,-150.0,0.00029845,2]
[426583747,1782631840000,-500.0,0.00029899,2]
[426583758,1782631840000,-151.0,0.00030097,7]
[426583757,1782631840000,-4173.26894498,0.0003,2]
[426583746,1782631840000,-500.0,0.00029866,19]
[426583751,1782631840000,-156.52633102,0.00029932,2]
[426583752,1782631840000,-304.93,0.0003,2]
[426583748,1782631840000,-1200.0,0.000299,10]
[426583749,1782631840000,-214.1092993,0.000299,2]
[426583750,1782631840000,-210.64309224,0.000299,2]
[426583754,1782631840000,-1095.65649088,0.0003,3]
[426583753,1782631840000,-4960.9915,0.0003,10]
[426583756,1782631840000,-578.70948606,0.0003,2]
[426583755,1782631840000,-156.12131124,0.0003,2]
[426583759,1782631840000,-1183.06548016,0.00030099,15]
[426583761,1782631840000,-500.0,0.00030099,7]
[426583762,1782631840000,-500.0,0.00030099,7]
[426583764,1782631840000,-163.25567929,0.00030099,2]
[426583760,1782631840000,-500.0,0.00030099,7]
[426583763,1782631840000,-500.0,0.00030099,7]
[426583766,1782631840000,-500.0,0.00030099,2]
[426583765,1782631840000,-500.0,0.00030099,2]
[426583767,1782631840000,-500.0,0.00030099,2]
[426583702,1782631840000,-524.0,0.00028667,30]
[426583739,1782631840000,-174.74688955,0.00029688,7]
[426583737,1782631840000,-157.0,0.00029669,30]
[426583704,1782631840000,-152.0,0.00028667,30]
[426583734,1782631840000,-153.0,0.00029667,30]
[426583718,1782631840000,-156.52633102,0.00029426,2]
[426583719,1782631840000,-19497.4759368,0.00029452,2]
[426583713,1782631840000,-151.4268351,0.00029052,10]
[426583711,1782631840000,-2164.9968458,0.00029,2]
[426583710,1782631840000,-374.0,0.00028983,10]
[426583716,1782631840000,-1080.80860647,0.00029074,2]
[426583709,1782631840000,-157.0,0.00028669,30]
[426583715,1782631840000,-1223.16063818,0.00029074,2]
[426583717,1782631840000,-1068.38512697,0.00029074,2]
[426583714,1782631840000,-464.92284466,0.00029054,7]
[426583712,1782631840000,-1079.49962974,0.00029035,2]
[426583721,1782631840000,-500.0,0.00029514,7]
[426583724,1782631840000,-2660.9293257,0.00029559,2]
[426583728,1782631840000,-154.0,0.00029667,30]
[426583736,1782631840000,-664.0,0.00029669,30]
[426583723,1782631840000,-16000.8470296,0.00029515,2]
[426583731,1782631840000,-155.0,0.00029667,30]
[426583740,1782631840000,-156.52633102,0.00029763,2]
[426583742,1782631840000,-150.0,0.00029845,2]
[426583738,1782631840000,-250.0,0.00029671,14]
[426583722,1782631840000,-58069.793907,0.00029515,2]
[426583732,1782631840000,-152.0,0.00029667,30]
[426583744,1782631840000,-150.0,0.00029845,2]
[426583720,1782631840000,-500.0,0.00029514,7]
[426583730,1782631840000,-524.0,0.00029667,30]
[426583727,1782631840000,-151.0,0.00029666,30]
[426583733,1782631840000,-298.0,0.00029667,30]
[426583726,1782631840000,-156.52633102,0.00029595,2]
[426583729,1782631840000,-490.0,0.00029667,30]
[426583810,1782631841000,-500.0,0.00030887,2]
[426583809,1782631841000,-500.0,0.00030887,2]
[426583807,1782631841000,-1351.3747258,0.00030754,2]
[426583804,1782631841000,-1500.0,0.00030754,2]
[426583801,1782631841000,-1500.0,0.00030754,2]
[426583802,1782631841000,-1500.0,0.00030754,2]
[426583798,1782631841000,-2562.83040121,0.00030754,2]
[426583799,1782631841000,-1500.0,0.00030754,2]
[426583806,1782631841000,-1500.0,0.00030754,2]
[426583808,1782631841000,-6116.85632789,0.00030812,2]
[426583797,1782631841000,-1500.0,0.00030754,2]
[426583819,1782631841000,-617.81,0.00031,7]
[426583816,1782631841000,-500.0,0.00030887,2]
[426583813,1782631841000,-500.0,0.00030887,2]
[426583811,1782631841000,-500.0,0.00030887,2]
[426583815,1782631841000,-500.0,0.00030887,2]
[426583818,1782631841000,-433.59221726,0.00030887,2]
[426583812,1782631841000,-500.0,0.00030887,2]
[426583800,1782631841000,-1500.0,0.00030754,2]
[426583817,1782631841000,-500.0,0.00030887,2]
[426583832,1782631841000,-151.0,0.00031666,30]
[426583821,1782631841000,-160.0,0.00031,30]
[426583822,1782631841000,-200.0,0.00031012,2]
[426583823,1782631841000,-2562.83040121,0.00031028,2]
[426583820,1782631841000,-1000.0,0.00031,7]
[426583814,1782631841000,-500.0,0.00030887,2]
[426583796,1782631841000,-1500.0,0.00030754,2]
[426583790,1782631841000,-153.0,0.00030667,30]
[426583805,1782631841000,-1500.0,0.00030754,2]
[426583769,1782631841000,-500.0,0.00030099,2]
[426583768,1782631841000,-500.0,0.00030099,2]
[426583770,1782631841000,-500.0,0.00030099,2]
[426583771,1782631841000,-1446232.86746777,0.000301,7]
[426583777,1782631841000,-200.0,0.00030401,2]
[426583773,1782631841000,-617.81,0.000301,7]
[426583783,1782631841000,-490.0,0.00030667,30]
[426583781,1782631841000,-151.0,0.00030666,30]
[426583780,1782631841000,-2610.239,0.00030614,26]
[426583779,1782631841000,-172.522,0.00030614,26]
[426583782,1782631841000,-154.0,0.00030667,30]
[426583774,1782631841000,-200.0,0.000301,2]
[426583776,1782631841000,-1310.54409796,0.00030335,2]
[426583778,1782631841000,-474.29,0.00030535,2]
[426583772,1782631841000,-299.15,0.000301,7]
[426583775,1782631841000,-150.0,0.000301,10]
[426583791,1782631841000,-664.0,0.00030669,30]
[426583786,1782631841000,-152.0,0.00030667,30]
[426583787,1782631841000,-298.0,0.00030667,30]
[426583794,1782631841000,-174.3991004,0.00030754,2]
[426583795,1782631841000,-500.0,0.00030754,2]
[426583793,1782631841000,-200.0,0.00030705,2]
[426583824,1782631841000,-17243.0,0.0003104,20]
[426583788,1782631841000,-153.0,0.00030667,30]
[426583792,1782631841000,-157.0,0.00030669,30]
[426583784,1782631841000,-524.0,0.00030667,30]
[426583785,1782631841000,-155.0,0.00030667,30]
[426583803,1782631841000,-1500.0,0.00030754,2]
[426583828,1782631841000,-520.16865279,0.00031302,2]
[426583831,1782631841000,-2562.83040121,0.00031576,2]
[426583882,1782631841000,-2562.83040121,0.00032781,2]
[426583868,1782631841000,-490.0,0.00032667,30]
[426583861,1782631841000,-2562.83040121,0.00032398,2]
[426583862,1782631841000,-1500.0,0.00032398,2]
[426583870,1782631841000,-155.0,0.00032667,30]
[426583869,1782631841000,-524.0,0.00032667,30]
[426583864,1782631841000,-205.59376406,0.00032633,7]
[426583866,1782631841000,-151.0,0.00032666,30]
[426583865,1782631841000,-233.39855313,0.00032655,2]
[426583867,1782631841000,-154.0,0.00032667,30]
[426583872,1782631841000,-298.0,0.00032667,30]
[426583871,1782631841000,-152.0,0.00032667,30]
[426583876,1782631841000,-157.0,0.00032669,30]
[426583830,1782631841000,-1500.0,0.00031302,2]
[426583873,1782631841000,-153.0,0.00032667,30]
[426583879,1782631841000,-2562.83040121,0.00032672,2]
[426583885,1782631841000,-17243.0,0.0003296,20]
[426583884,1782631841000,-1500.0,0.000329,12]
[426583883,1782631841000,-1500.0,0.00032781,2]
[426583875,1782631841000,-664.0,0.00032669,30]
[426583878,1782631841000,-178.31952635,0.00032672,2]
[426583874,1782631841000,-153.0,0.00032667,30]